fUSD/lending_fUSD_20241215
["ID","MTS","AMOUNT","RATE_DAILY","PERIOD"]
[345405326,1734244247393,-500.0,0.00013997,2]
[345405327,1734244247403,-500.0,0.00013997,2]
[345405328,1734244247412,-500.0,0.00013997,2]
[345405329,1734244247423,-500.0,0.00013997,2]
[345405330,1734244247434,-500.0,0.00013997,2]
[345405331,1734244247444,-500.0,0.00013997,2]
[345405332,1734244247455,-500.0,0.00013997,2]
[345405333,1734244247465,-500.0,0.00013997,2]
[345405334,1734244247475,-500.0,0.00013997,2]
[345405335,1734244247485,-500.0,0.00013997,2]
[345405336,1734244247495,-500.0,0.00013997,2]
[345405337,1734244247505,-630.12,0.00013997,2]
[345405338,1734244247515,-500.0,0.00013997,2]
[345405339,1734244247525,-500.0,0.00013997,2]
[345405340,1734244247535,-500.0,0.00013997,2]
[345405341,1734244247544,-500.0,0.00013997,2]
[345405342,1734244247690,-500.0,0.00013997,2]
[345405343,1734244247727,-500.0,0.00013997,2]
[345405344,1734244247738,-645.9953439,0.00013997,2]
[345405345,1734244247747,-500.0,0.00013997,2]
[345405346,1734244247757,-500.0,0.00013997,2]
[345405347,1734244247766,-500.0,0.00013997,2]
[345405348,1734244247776,-525.4049458,0.00013997,2]
[345405349,1734244247786,-363.01011327,0.00013997,2]
[345405350,1734244247795,-501.67287613,0.00013997,2]
[345405351,1734244247807,-500.0,0.00013997,2]
[345405352,1734244247816,-505.32525551,0.00013997,2]
[345405353,1734244247826,-502.88065562,0.00013997,2]
[345405354,1734244247835,-778.0,0.00013997,2]
[345405355,1734244247845,-497.66528206,0.00013997,2]
[345405356,1734244247855,-505.44367409,0.00013997,2]
[345405357,1734244247864,-500.0,0.00013997,2]
[345405358,1734244247874,-1259.6,0.00013997,2]
[345405359,1734244247884,-816.92,0.00013997,2]
[345405360,1734244247893,-516.97407705,0.00013997,2]
[345405361,1734244247903,-500.0,0.00013997,2]
[345405362,1734244247912,-519.24872072,0.00013997,2]
[345405363,1734244247923,-1000.0,0.00013997,2]
[345405364,1734244247933,-1434.28,0.00013997,2]
[345405365,1734244247942,-500.0,0.00013997,2]
[345405366,1734244247951,-590.18,0.00013997,2]
[345405367,1734244247962,-500.0,0.00013997,2]
[345405368,1734244247971,-557.13,0.00013997,2]
[345405369,1734244247981,-500.0,0.00013997,2]
[345405370,1734244247990,-502.43,0.00013997,2]
[345405371,1734244248000,-189.75951798,0.00013997,2]
[345405372,1734244248010,-500.0,0.00013997,2]
[345405373,1734244248019,-500.0,0.00013997,2]
[345405374,1734244248030,-605.95839911,0.00013997,2]
[345405375,1734244248039,-500.0,0.00013997,2]
[345405376,1734244248048,-500.0,0.00013997,2]
[345405377,1734244248061,-500.0,0.00013997,2]
[345405378,1734244248072,-500.0,0.00013997,2]
[345405379,1734244248081,-500.0,0.00013997,2]
[345405380,1734244248092,-500.0,0.00013997,2]
[345405381,1734244248102,-502.99435087,0.00013997,2]
[345405382,1734244248112,-741.98,0.00013997,2]
[345405383,1734244248121,-500.0,0.00013997,2]
[345405384,1734244248131,-420.78580468,0.00013997,2]
[345405385,1734244248141,-646.69,0.00013997,2]
[345405386,1734244248151,-500.0,0.00013997,2]
[345405387,1734244248160,-500.0,0.00013997,2]
[345405388,1734244248169,-2151.82,0.00013997,2]
[345405389,1734244248180,-500.0,0.00013997,2]
[345405390,1734244248190,-500.0,0.00013997,2]
[345405391,1734244248199,-1904.54,0.00013997,2]
[345405392,1734244248210,-808.86,0.00013997,2]
[345405393,1734244248219,-1220.62,0.00013997,2]
[345405394,1734244248229,-703.22,0.00013997,2]
[345405395,1734244248239,-1272.74,0.00013997,2]
[345405396,1734244248249,-200.0,0.00013998,2]
[345405397,1734244248257,-504.55997355,0.00013998,2]
[345405398,1734244248267,-500.0,0.00013998,2]
[345405399,1734244248276,-500.0,0.00013998,2]
[345405400,1734244248285,-500.0,0.00013998,2]
[345405401,1734244248294,-500.0,0.00013998,2]
[345405402,1734244248307,-500.0,0.00013998,2]
[345405403,1734244248317,-500.0,0.00013998,2]
[345405404,1734244248327,-507.21581839,0.00013998,2]
[345405405,1734244248336,-499.50069477,0.00013998,2]
[345405406,1734244248347,-500.0,0.00013998,2]
[345405407,1734244248356,-500.0,0.00013998,2]
[345405408,1734244248367,-500.0,0.00013998,2]
[345405409,1734244248377,-500.0,0.00013998,2]
[345405410,1734244248388,-500.0,0.00013998,2]
[345405411,1734244248398,-500.0,0.00013998,2]
[345405412,1734244248407,-500.0,0.00013998,2]
[345405413,1734244248417,-500.0,0.00013998,2]
[345405414,1734244248427,-500.0,0.00013998,2]
[345405415,1734244248436,-500.0,0.00013998,2]
[345405416,1734244248446,-500.0,0.00013998,2]
[345405417,1734244248455,-506.99219844,0.00013998,2]
[345405418,1734244248465,-500.0,0.00013998,2]
[345405419,1734244248475,-500.0,0.00013998,2]
[345405420,1734244248485,-500.0,0.00013998,2]
[345405421,1734244248494,-500.0,0.00013998,2]
[345405422,1734244248503,-427.45517847,0.00013998,2]
[345405423,1734244248514,-500.0,0.00013998,2]
[345405424,1734244248524,-500.0,0.00013998,2]
[345405425,1734244248534,-500.0,0.00013998,2]
[345405426,1734244248544,-500.0,0.00013998,2]
[345405427,1734244248553,-500.0,0.00013998,2]
[345405428,1734244248565,-500.0,0.00013998,2]
[345405429,1734244248574,-500.0,0.00013998,2]
[345405430,1734244248584,-247.52,0.00013998,2]
[345405431,1734244248594,-500.0,0.00013998,2]
[345405432,1734244248604,-500.0,0.00013998,2]
[345405433,1734244248613,-500.0,0.00013998,2]
[345405434,1734244248626,-500.0,0.00013998,2]
[345405435,1734244248637,-500.0,0.00013998,2]
[345405436,1734244248648,-500.0,0.00013998,2]
[345405437,1734244248657,-500.0,0.00013998,2]
[345405438,1734244248667,-500.0,0.00013998,2]
[345405439,1734244248677,-500.0,0.00013998,2]
[345405440,1734244248687,-500.0,0.00013998,2]
[345405441,1734244248697,-500.0,0.00013998,2]
[345405442,1734244248707,-500.0,0.00013998,2]
[345405443,1734244248717,-500.0,0.00013998,2]
[345405444,1734244248727,-500.0,0.00013998,2]
[345405445,1734244248737,-500.0,0.00013998,2]
[345405446,1734244248747,-500.0,0.00013998,2]
[345405447,1734244248756,-500.0,0.00013998,2]
[345405448,1734244248765,-500.0,0.00013998,2]
[345405449,1734244248777,-240.8746642,0.00013998,2]
[345405450,1734244248787,-564.31,0.00013998,2]
[345405451,1734244248797,-500.0,0.00013998,2]
[345405452,1734244248807,-500.0,0.00013998,2]
[345405453,1734244248817,-515.71299879,0.00013998,2]
[345405454,1734244248827,-505.15156816,0.00013998,2]
[345405455,1734244248837,-500.0,0.00013998,2]
[345405456,1734244248847,-176.38673686,0.00013998,2]
[345405457,1734244248857,-500.0,0.00013998,2]
[345405458,1734244248867,-150.2459486,0.00013998,2]
[345405459,1734244248876,-500.0,0.00013998,2]
[345405460,1734244248886,-493.1711119,0.00013998,2]
[345405461,1734244248895,-500.0,0.00013998,2]
[345405462,1734244248904,-500.0,0.00013998,2]
[345405463,1734244248913,-500.0,0.00013998,2]
[345405464,1734244248923,-500.0,0.00013998,2]
[345405465,1734244248933,-1334.64,0.00013998,2]
[345405466,1734244248943,-1334.64,0.00013998,2]
[345405467,1734244248954,-1223.33,0.00013998,2]
[345405468,1734244248963,-1223.33,0.00013998,2]
[345405469,1734244248973,-500.0,0.00013998,2]
[345405470,1734244248982,-500.0,0.00013998,2]
[345405471,1734244248992,-500.0,0.00013998,2]
[345405472,1734244249001,-500.0,0.00013998,2]
[345405473,1734244249010,-1947.53,0.00013998,2]
[345405474,1734244249020,-1947.53,0.00013998,2]
[345405475,1734244249029,-3305.05,0.00013998,2]
[345405476,1734244249039,-778.0,0.00013998,2]
[345405477,1734244249048,-3305.05,0.00013998,2]
[345405478,1734244249060,-778.0,0.00013998,2]
[345405479,1734244249078,-500.0,0.00013998,2]
[345405480,1734244249093,-500.0,0.00013998,2]
[345405481,1734244249107,-500.0,0.00013998,2]
[345405482,1734244249119,-500.0,0.00013998,2]
[345405483,1734244249134,-1259.6,0.00013998,2]
[345405484,1734244249148,-1259.6,0.00013998,2]
[345405485,1734244249161,-816.92,0.00013998,2]
[345405486,1734244249175,-816.92,0.00013998,2]
[345405487,1734244249189,-500.0,0.00013998,2]
[345405488,1734244249203,-500.0,0.00013998,2]
[345405489,1734244249215,-500.0,0.00013998,2]
[345405490,1734244249227,-500.0,0.00013998,2]
[345405491,1734244249238,-500.0,0.00013998,2]
[345405492,1734244249250,-500.0,0.00013998,2]
[345405493,1734244249264,-983.65,0.00013998,2]
[345405494,1734244249277,-970.18,0.00013998,2]
[345405495,1734244249291,-970.18,0.00013998,2]
[345405496,1734244249304,-1434.28,0.00013998,2]
[345405497,1734244249318,-1434.28,0.00013998,2]
[345405498,1734244249332,-500.0,0.00013998,2]
[345405499,1734244249346,-500.0,0.00013998,2]
[345405500,1734244249360,-500.0,0.00013998,2]
[345405501,1734244249373,-500.0,0.00013998,2]
[345405502,1734244249385,-718.55,0.00013998,2]
[345405503,1734244249399,-718.55,0.00013998,2]
[345405504,1734244249412,-500.0,0.00013998,2]
[345405505,1734244249426,-500.0,0.00013998,2]
[345405506,1734244249439,-557.13,0.00013998,2]
[345405507,1734244249454,-557.13,0.00013998,2]
[345405508,1734244249467,-153.57620993,0.00013998,2]
[345405509,1734244249479,-502.43,0.00013998,2]
[345405510,1734244249492,-502.43,0.00013998,2]
[345405511,1734244249506,-500.0,0.00013998,2]
[345405512,1734244249518,-500.0,0.00013998,2]
[345405513,1734244249532,-519.73,0.00013998,2]
[345405514,1734244249543,-519.73,0.00013998,2]
[345405515,1734244249555,-500.0,0.00013998,2]
[345405516,1734244249569,-500.0,0.00013998,2]
[345405517,1734244249582,-637.74,0.00013998,2]
[345405518,1734244249597,-500.0,0.00013998,2]
[345405519,1734244249611,-637.74,0.00013998,2]
[345405520,1734244249622,-500.0,0.00013998,2]
[345405521,1734244249633,-500.0,0.00013998,2]
[345405522,1734244249645,-500.0,0.00013998,2]
[345405523,1734244249659,-419.46367251,0.00013998,2]
[345405524,1734244249674,-676.94,0.00013998,2]
[345405525,1734244249688,-676.94,0.00013998,2]
[345405526,1734244249699,-500.0,0.00013998,2]
[345405527,1734244249710,-500.0,0.00013998,2]
[345405528,1734244249721,-500.0,0.00013998,2]
[345405529,1734244249732,-162.84,0.00013998,2]
[345405530,1734244249744,-682.7,0.00013998,2]
[345405531,1734244249755,-682.7,0.00013998,2]
[345405532,1734244249766,-500.0,0.00013998,2]
[345405533,1734244249777,-424.76,0.00013998,2]
[345405534,1734244249789,-3000.0,0.00013998,2]
[345405535,1734244249800,-500.0,0.00013998,2]
[345405536,1734244249811,-500.0,0.00013998,2]
[345405537,1734244249824,-741.98,0.00013998,2]
[345405538,1734244249836,-741.98,0.00013998,2]
[345405539,1734244249848,-500.0,0.00013998,2]
[345405540,1734244249859,-500.0,0.00013998,2]
[345405541,1734244249871,-500.0,0.00013998,2]
[345405542,1734244249882,-500.0,0.00013998,2]
[345405543,1734244249893,-500.0,0.00013998,2]
[345405544,1734244249905,-500.0,0.00013998,2]
[345405545,1734244249918,-646.69,0.00013998,2]
[345405546,1734244249930,-646.69,0.00013998,2]
[345405547,1734244249941,-500.0,0.00013998,2]
[345405548,1734244249953,-877.49,0.00013998,2]
[345405549,1734244249964,-500.0,0.00013998,2]
[345405550,1734244249975,-877.49,0.00013998,2]
[345405551,1734244249987,-637.74,0.00013998,2]
[345405552,1734244249998,-637.74,0.00013998,2]
[345405553,1734244250009,-615.11,0.00013998,2]
[345405554,1734244250021,-2151.82,0.00013998,2]
[345405555,1734244250033,-2151.82,0.00013998,2]
[345405556,1734244250044,-500.0,0.00013998,2]
[345405557,1734244250058,-500.0,0.00013998,2]
[345405558,1734244250069,-500.0,0.00013998,2]
[345405559,1734244250081,-500.0,0.00013998,2]
[345405560,1734244250093,-500.0,0.00013998,2]
[345405561,1734244250104,-500.0,0.00013998,2]
[345405562,1734244250115,-500.0,0.00013998,2]
[345405563,1734244250127,-500.0,0.00013998,2]
[345405564,1734244250138,-1904.54,0.00013998,2]
[345405565,1734244250150,-1904.54,0.00013998,2]
[345405566,1734244250161,-808.86,0.00013998,2]
[345405567,1734244250173,-808.86,0.00013998,2]
[345405568,1734244250184,-500.0,0.00013998,2]
[345405569,1734244250196,-500.0,0.00013998,2]
[345405570,1734244250207,-500.0,0.00013998,2]
[345405571,1734244250219,-390.4,0.00013998,2]
[345405572,1734244250231,-1220.62,0.00013998,2]
[345405573,1734244250243,-1220.62,0.00013998,2]
[345405574,1734244250254,-500.0,0.00013998,2]
[345405575,1734244250265,-500.0,0.00013998,2]
[345405576,1734244250277,-703.22,0.00013998,2]
[345405577,1734244250288,-703.22,0.00013998,2]
[345405578,1734244250300,-1272.74,0.00013998,2]
[345405579,1734244250314,-1272.74,0.00013998,2]
[345405580,1734244250326,-998.81,0.00013998,2]
[345405581,1734244250338,-99343.68119402,0.00013999,2]
[345405582,1734244250350,-532.0,0.00013999,2]
[345405583,1734244250362,-36489.95674611,0.00013999,2]
[345405584,1734244250374,-36489.95674611,0.00013999,2]
[345405585,1734244250385,-2822.93903706,0.00013999,2]
[345405586,1734244250397,-151.0,0.00013999,2]
[345405587,1734244250409,-151.0,0.00013999,2]
[345405588,1734244250420,-151.0,0.00013999,2]
[345405589,1734244250432,-500.0,0.00013999,2]
[345405590,1734244250444,-500.0,0.00013999,2]
[345405591,1734244250455,-500.0,0.00013999,2]
[345405592,1734244250467,-500.0,0.00013999,2]
[345405593,1734244250478,-500.0,0.00013999,2]
[345405594,1734244250491,-500.0,0.00013999,2]
[345405595,1734244250503,-500.0,0.00013999,2]
[345405596,1734244250515,-500.0,0.00013999,2]
[345405597,1734244250526,-500.0,0.00013999,2]
[345405598,1734244250537,-500.0,0.00013999,2]
[345405599,1734244250549,-500.0,0.00013999,2]
[345405600,1734244250563,-500.0,0.00013999,2]
[345405601,1734244250575,-500.0,0.00013999,2]
[345405602,1734244250587,-500.0,0.00013999,2]
[345405603,1734244250599,-500.0,0.00013999,2]
[345405604,1734244250610,-500.0,0.00013999,2]
[345405605,1734244250621,-500.0,0.00013999,2]
[345405606,1734244250630,-500.0,0.00013999,2]
[345405607,1734244250639,-500.0,0.00013999,2]
[345405608,1734244250648,-500.0,0.00013999,2]
[345405609,1734244250659,-500.0,0.00013999,2]
[345405610,1734244250668,-500.0,0.00013999,2]
[345405611,1734244250677,-500.0,0.00013999,2]
[345405612,1734244250687,-476.8145069,0.00013999,2]
[345405613,1734244250696,-151.0,0.00013999,2]
[345405614,1734244250706,-151.0,0.00013999,2]
[345405615,1734244250715,-151.0,0.00013999,2]
[345405616,1734244250725,-151.0,0.00013999,2]
[345405617,1734244250990,-500.0,0.00013999,2]
[345405618,1734244251004,-500.0,0.00013999,2]
[345405619,1734244251014,-500.0,0.00013999,2]
[345405620,1734244251023,-500.0,0.00013999,2]
[345405621,1734244251032,-500.0,0.00013999,2]
[345405622,1734244251042,-500.0,0.00013999,2]
[345405623,1734244251051,-500.0,0.00013999,2]
[345405624,1734244251063,-506.28534333,0.00013999,2]
[345405625,1734244251072,-500.0,0.00013999,2]
[345405626,1734244251081,-332.37030477,0.00013999,2]
[345405627,1734244251090,-9009.343579,0.00013999,2]
[345405628,1734244251100,-151.0,0.00013999,2]
[345405629,1734244251109,-151.0,0.00013999,2]
[345405630,1734244251118,-572.4,0.00013999,2]
[345405631,1734244251128,-500.0,0.00013999,2]
[345405632,1734244251137,-235.21,0.00013999,2]
[345405633,1734244251147,-500.0,0.00013999,2]
[345405634,1734244251156,-500.0,0.00013999,2]
[345405635,1734244251166,-500.0,0.00013999,2]
[345405636,1734244251175,-500.0,0.00013999,2]
[345405637,1734244251185,-500.0,0.00013999,2]
[345405638,1734244251194,-500.0,0.00013999,2]
[345405639,1734244251203,-500.0,0.00013999,2]
[345405640,1734244251212,-500.0,0.00013999,2]
[345405641,1734244251222,-500.0,0.00013999,2]
[345405642,1734244251231,-500.0,0.00013999,2]
[345405643,1734244251241,-500.0,0.00013999,2]
[345405644,1734244251250,-500.0,0.00013999,2]
[345405645,1734244251259,-500.0,0.00013999,2]
[345405646,1734244251269,-500.0,0.00013999,2]
[345405647,1734244251278,-500.0,0.00013999,2]
[345405648,1734244251288,-500.0,0.00013999,2]
[345405649,1734244251297,-500.0,0.00013999,2]
[345405650,1734244251308,-158.01922722,0.00013999,2]
[345405651,1734244251318,-500.0,0.00013999,2]
[345405652,1734244251328,-500.0,0.00013999,2]
[345405653,1734244251337,-500.0,0.00013999,2]
[345405654,1734244251346,-500.0,0.00013999,2]
[345405655,1734244251355,-500.0,0.00013999,2]
[345405656,1734244251365,-500.0,0.00013999,2]
[345405657,1734244251373,-500.0,0.00013999,2]
[345405658,1734244251383,-500.0,0.00013999,2]
[345405659,1734244251392,-500.0,0.00013999,2]
[345405660,1734244251401,-500.0,0.00013999,2]
[345405661,1734244251410,-500.0,0.00013999,2]
[345405662,1734244251420,-500.0,0.00013999,2]
[345405663,1734244251430,-500.0,0.00013999,2]
[345405664,1734244251439,-500.0,0.00013999,2]
[345405665,1734244251448,-500.0,0.00013999,2]
[345405666,1734244251458,-500.0,0.00013999,2]
[345405667,1734244251467,-500.0,0.00013999,2]
[345405668,1734244251476,-500.0,0.00013999,2]
[345405669,1734244251485,-500.0,0.00013999,2]
[345405670,1734244251494,-500.0,0.00013999,2]
[345405671,1734244251503,-500.0,0.00013999,2]
[345405672,1734244251512,-487.38,0.00013999,2]
[345405673,1734244251522,-500.0,0.00013999,2]
[345405674,1734244251531,-500.0,0.00013999,2]
[345405675,1734244251540,-500.0,0.00013999,2]
[345405676,1734244251549,-151.0,0.00013999,2]
[345405677,1734244251560,-500.0,0.00013999,2]
[345405678,1734244251571,-500.0,0.00013999,2]
[345405679,1734244251581,-500.0,0.00013999,2]
[345405680,1734244251591,-500.0,0.00013999,2]
[345405681,1734244251601,-151.0,0.00013999,2]
[345405682,1734244251610,-636.93915287,0.00013999,2]
[345405683,1734244251620,-151.0,0.00013999,2]
[345405684,1734244251629,-251.016654,0.00013999,2]
[345405685,1734244251638,-251.016654,0.00013999,2]
[345405686,1734244251649,-151.0,0.00013999,2]
[345405687,1734244251659,-500.0,0.00013999,2]
[345405688,1734244251668,-500.0,0.00013999,2]
[345405689,1734244251678,-500.0,0.00013999,2]
[345405690,1734244251687,-500.0,0.00013999,2]
[345405691,1734244251696,-262.00256065,0.00013999,2]
[345405692,1734244251705,-500.0,0.00013999,2]
[345405693,1734244251714,-500.0,0.00013999,2]
[345405694,1734244251723,-500.0,0.00013999,2]
[345405695,1734244251732,-500.0,0.00013999,2]
[345405696,1734244251741,-1334.64,0.00013999,2]
[345405697,1734244251750,-1334.64,0.00013999,2]
[345405698,1734244251759,-1334.64,0.00013999,2]
[345405699,1734244251768,-1334.64,0.00013999,2]
[345405700,1734244251777,-1334.64,0.00013999,2]
[345405701,1734244251786,-1334.64,0.00013999,2]
[345405702,1734244251795,-1334.64,0.00013999,2]
[345405703,1734244251803,-1334.64,0.00013999,2]
[345405704,1734244251817,-1334.64,0.00013999,2]
[345405705,1734244251828,-1334.64,0.00013999,2]
[345405706,1734244251837,-1223.33,0.00013999,2]
[345405707,1734244251846,-1223.33,0.00013999,2]
[345405708,1734244251855,-1223.33,0.00013999,2]
[345405709,1734244251864,-1223.33,0.00013999,2]
[345405710,1734244251874,-1223.33,0.00013999,2]
[345405711,1734244251883,-1223.33,0.00013999,2]
[345405712,1734244251892,-1223.33,0.00013999,2]
[345405713,1734244251902,-1223.33,0.00013999,2]
[345405714,1734244251911,-1223.33,0.00013999,2]
[345405715,1734244251920,-1223.33,0.00013999,2]
[345405716,1734244251929,-500.0,0.00013999,2]
[345405717,1734244251938,-500.0,0.00013999,2]
[345405718,1734244251947,-500.0,0.00013999,2]
[345405719,1734244251956,-500.0,0.00013999,2]
[345405720,1734244251966,-500.0,0.00013999,2]
[345405721,1734244251975,-500.0,0.00013999,2]
[345405722,1734244251983,-500.0,0.00013999,2]
[345405723,1734244251992,-500.0,0.00013999,2]
[345405724,1734244252001,-1947.53,0.00013999,2]
[345405725,1734244252011,-500.0,0.00013999,2]
[345405726,1734244252020,-1947.53,0.00013999,2]
[345405727,1734244252029,-500.0,0.00013999,2]
[345405728,1734244252038,-1947.53,0.00013999,2]
[345405729,1734244252048,-500.0,0.00013999,2]
[345405730,1734244252059,-1947.53,0.00013999,2]
[345405731,1734244252069,-500.0,0.00013999,2]
[345405732,1734244252078,-353.63193043,0.00013999,2]
[345405733,1734244252102,-329.6416189,0.00013999,2]
[345405734,1734244252115,-1264.25645067,0.00013999,2]
[345405735,1734244252124,-500.0,0.00013999,2]
[345405736,1734244252134,-1947.53,0.00013999,2]
[345405737,1734244252145,-500.0,0.00013999,2]
[345405738,1734244252155,-763.74291247,0.00013999,2]
[345405739,1734244252168,-1183.78708753,0.00013999,2]
[345405740,1734244252177,-500.0,0.00013999,2]
[345405741,1734244252186,-760.93370974,0.00013999,2]
[345405742,1734244873631,191.46,0.00016658,30]
[345405743,1734244886250,-191.56,9.857e-05,2]
[345405744,1734244886289,-191.67798,0.00012168,2]
[345405745,1734244886316,-1017.08,0.00012229,2]
[345405746,1734244886339,-471.47,0.00012295,2]
[345405747,1734244886360,-191.56,0.00012321,2]
[345405748,1734244886382,-995.91,0.00012463,2]
[345405749,1734244886406,-506.96,0.00012479,2]
[345405750,1734244886428,-185.6881003,0.00012553,2]
[345405751,1734244886455,-1005.97,0.00012591,2]
[345405752,1734244886481,-250.0,0.00012626,2]
[345405753,1734244886507,-1008.98,0.00012644,2]
[345405754,1734244886529,-250.0,0.00012654,2]
[345405755,1734244886552,-933.1439197,0.00012661,2]
[345405757,1734245226216,-173.73779719,0.00010137,2]
[345405759,1734245352093,-158.93,9.712e-05,2]
[345405760,1734245352116,-16.35220281,0.00010137,2]
[345405761,1734245352138,-1526.51,0.00010573,2]
[345405762,1734245352159,-985.43,0.00012083,2]
[345405763,1734245352180,-250.0,0.0001213,2]
[345405764,1734245352200,-500.0,0.00012186,2]
[345405765,1734245352220,-185.6881003,0.00012284,2]
[345405766,1734245352240,-150.0,0.00012384,2]
[345405767,1734245352262,-268.3,0.00012421,2]
[345405768,1734245352283,-268.3,0.00012424,2]
[345405769,1734245352304,-1000.0,0.00012426,2]
[345405770,1734245352326,-268.3,0.00012428,2]
[345405771,1734245352350,-268.3,0.00012431,2]
[345405772,1734245352373,-268.3,0.00012434,2]
[345405773,1734245352395,-268.3,0.00012437,2]
[345405774,1734245352417,-268.3,0.00012441,2]
[345405775,1734245352438,-268.3,0.00012444,2]
[345405776,1734245352460,-268.3,0.00012447,2]
[345405777,1734245352502,-268.3,0.00012451,2]
[345405778,1734245352523,-268.3,0.00012454,2]
[345405779,1734245352544,-268.3,0.00012457,2]
[345405780,1734245352567,-268.3,0.0001246,2]
[345405781,1734245352590,-268.3,0.00012464,2]
[345405782,1734245352806,-268.3,0.00012467,2]
[345405783,1734245352830,-268.3,0.0001247,2]
[345405784,1734245352853,-268.3,0.00012473,2]
[345405785,1734245352875,-268.3,0.00012477,2]
[345405786,1734245352896,-268.3,0.0001248,2]
[345405787,1734245352917,-268.3,0.00012483,2]
[345405788,1734245352939,-988.19,0.00012521,2]
[345405789,1734245377061,1715.56060217,0.0001258,2]
[345405791,1734245392236,23900.0,0.00012588,2]
[345405793,1734245409587,336.65,0.00012564,2]
[345405803,1734245431698,-53.3660803,0.00012661,2]
[345405804,1734245431709,-995.25,0.00012678,2]
[345405805,1734245431719,-1014.64,0.00012679,2]
[345405806,1734245431729,-1008.39,0.00012679,2]
[345405807,1734245431738,-1589.05,0.0001268,2]
[345405808,1734245431748,-1017.36,0.0001268,2]
[345405809,1734245431757,-1001.95,0.00012794,2]
[345405810,1734245431767,-10.0200409,0.00012837,2]
[345405811,1734245431780,-1516.4899591,0.00012837,2]
[345405812,1734245431790,-175.2713969,0.00012844,2]
[345405813,1734245431802,-388.8686031,0.00012844,2]
[345405814,1734245431812,-319.8531288,0.00012852,2]
[345405815,1734245431993,-660.7568712,0.00012852,2]
[345405816,1734245432003,-300.0,0.0001287,2]
[345405817,1734245432015,-1001.63,0.00012871,2]
[345405818,1734245432025,-989.88,0.00012888,2]
[345405819,1734245432035,-1344.99,0.00012893,2]
[345405820,1734245432046,-265.71,0.00012893,2]
[345405821,1734245432056,-9999.99,0.00012893,2]
[345405822,1734245432066,-476.38,0.00012893,2]
[345405823,1734245432078,-1923.46,0.00012893,2]
[345405824,1734245432087,-299.99,0.00012893,2]
[345405825,1734245432097,-950.44,0.00012893,2]
[345405826,1734245432107,-161.04,0.00012893,2]
[345405827,1734245432121,-326.91,0.00012893,2]
[345405828,1734245432134,-2414.8,0.00012893,2]
[345405829,1734245432145,-391.55,0.00012893,2]
[345405830,1734245432156,-1324.77,0.00012893,2]
[345405831,1734245432168,-150.99,0.00012893,2]
[345405832,1734245432179,-150.99,0.00012893,2]
[345405833,1734245432190,-987.94,0.00012913,2]
[345405834,1734245432200,-1018.37,0.00012913,2]
[345405835,1734245432210,-2852.11,0.00012913,2]
[345405836,1734245432220,-1056.0,0.00012952,2]
[345405837,1734245432229,-450.0,0.00013,2]
[345405838,1734245432239,-984.39,0.00013091,2]